bitfinex/quotes_BTCUSD_20240715
["timestamp","ask_amount","ask_price","bid_price","bid_amount"]
[1721023731651,0.87406664,62877.0,62876.0,0.21847014]
[1721023731868,0.87406664,62877.0,62876.0,0.21647014]
[1721023732401,0.87406664,62877.0,62876.0,0.21947014]
[1721023733526,0.87407999,62877.0,62876.0,0.22247014]
[1721023733705,1.05158601,62877.0,62876.0,0.21947014]
[1721023734001,1.05157639,62877.0,62876.0,0.22147014]
[1721023734698,1.05157639,62877.0,62876.0,0.21647014]
[1721023735129,1.05157639,62877.0,62876.0,0.22147014]
[1721023735730,0.98007938,62877.0,62876.0,0.22147014]
[1721023735929,1.38468095,62877.0,62876.0,0.1432]
[1721023736145,1.28935238,62877.0,62876.0,0.1432]
[1721023736433,1.40854835,62877.0,62876.0,0.1432]
[1721023736632,1.34723197,62877.0,62876.0,0.1432]
[1721023736833,1.40774274,62877.0,62876.0,0.1432]
[1721023737278,1.40774274,62877.0,62876.0,0.1422]
[1721023737485,1.28854677,62877.0,62876.0,0.1422]
[1721023737688,1.40774274,62877.0,62876.0,0.1422]
[1721023738217,1.28854677,62877.0,62876.0,0.1422]
[1721023738418,1.28854677,62877.0,62876.0,0.37107272]
[1721023738419,0.30438774,62877.0,62876.0,0.37107272]
[1721023738669,0.35299975,62877.0,62876.0,0.37107272]
[1721023739021,0.25759177,62877.0,62876.0,0.37107272]
[1721023739427,0.35299975,62877.0,62876.0,0.37107272]
[1721023739815,0.197081,62877.0,62876.0,0.37107272]
[1721023740168,0.35325502,62877.0,62876.0,0.37107272]
[1721023740512,0.35325502,62877.0,62876.0,0.46407272]
[1721023740716,0.25783897,62877.0,62876.0,0.46407272]
[1721023741182,0.25764758,62877.0,62876.0,0.46407272]
[1721023741668,0.35306363,62877.0,62876.0,0.46407272]
[1721023741781,0.25764758,62877.0,62876.0,0.46407272]
[1721023741988,0.35306363,62877.0,62876.0,0.46407272]
[1721023742501,0.35283578,62877.0,62876.0,0.46407272]
[1721023742843,0.25741028,62877.0,62876.0,0.46407272]
[1721023743068,0.35285057,62877.0,62876.0,0.46407272]
[1721023744839,0.35285057,62877.0,62876.0,0.1422]
[1721023745040,1.28836528,62877.0,62876.0,0.005]
[1721023745244,1.40767704,62877.0,62876.0,0.005]
[1721023745410,1.00209228,62877.0,62876.0,0.005]
[1721023745605,0.99593766,62877.0,62876.0,0.005]
[1721023746141,1.00193766,62877.0,62876.0,0.005]
[1721023746372,0.97893766,62877.0,62876.0,0.005913]
[1721023747958,1.12330397,62877.0,62876.0,0.005913]
[1721023748160,1.25269652,62877.0,62876.0,0.005913]
[1721023748344,1.51067697,62877.0,62876.0,0.005913]
[1721023748923,1.51067697,62877.0,62876.0,0.002913]
[1721023748924,1.51061694,62877.0,62876.0,0.002913]
[1721023749119,1.48131694,62877.0,62876.0,0.002913]
[1721023750059,1.48131694,62877.0,62876.0,0.000913]
[1721023750237,1.44051694,62877.0,62876.0,0.000913]
[1721023750796,1.44051694,62877.0,62876.0,0.142213]
[1721023750797,0.61520463,62877.0,62876.0,0.142213]
[1721023750971,0.68760463,62877.0,62876.0,0.142213]
[1721023751183,0.18579563,62877.0,62876.0,0.142213]
[1721023751387,0.2774093,62877.0,62876.0,0.31392045]
[1721023751544,0.35257215,62877.0,62876.0,0.142213]
[1721023751747,0.25719563,62877.0,62876.0,0.46408572]
[1721023751998,0.15719563,62877.0,62876.0,0.46408572]
[1721023752166,0.15917895,62877.0,62876.0,0.46408572]
[1721023752342,0.08677895,62877.0,62876.0,0.46408572]
[1721023752544,0.08677931,62877.0,62876.0,0.46408572]
[1721023752837,0.03754064,62877.0,62876.0,0.46408572]
[1721023754027,0.03654064,62877.0,62876.0,0.46708572]
[1721023754426,0.03654064,62877.0,62876.0,0.46408572]
[1721023754629,0.03654064,62877.0,62876.0,0.46608572]
[1721023754828,0.03754064,62877.0,62876.0,0.61422372]
[1721023755054,0.03754064,62877.0,62876.0,1.63305472]
[1721023755228,0.00083,62887.0,62886.0,0.290116]
[1721023755431,0.03776983,62887.0,62886.0,1.05062072]
[1721023755771,0.01287581,62887.0,62886.0,1.33585272]
[1721023755921,0.01287581,62887.0,62886.0,1.62208472]
[1721023757421,0.01287581,62887.0,62886.0,1.62108472]
[1721023757782,0.01287581,62887.0,62886.0,1.56108472]
[1721023757985,0.01387581,62887.0,62886.0,1.62708472]
[1721023758163,0.01687581,62887.0,62886.0,1.62708472]
[1721023758716,0.00183,62887.0,62886.0,1.62708472]
[1721023758923,0.00083,62887.0,62886.0,1.63508472]
[1721023759145,0.00083,62887.0,62886.0,1.64208472]
[1721023759341,0.00183,62887.0,62886.0,1.64208472]
[1721023760501,0.00083,62887.0,62886.0,1.63508472]
[1721023760702,0.00183,62887.0,62886.0,1.62808472]
[1721023761122,0.00283,62887.0,62886.0,1.63508472]
[1721023761332,0.00383,62887.0,62886.0,1.64208472]
[1721023764076,0.00383,62887.0,62886.0,1.65291485]
[1721023766051,0.00383,62887.0,62886.0,1.71665985]
[1721023767569,0.00383,62887.0,62886.0,1.37042785]
[1721023767936,0.00383,62887.0,62886.0,1.43042785]
[1721023768107,0.00383,62887.0,62886.0,1.71665985]
[1721023771532,0.00383,62887.0,62886.0,2.47069185]
[1721023771675,0.00083,62905.0,62904.0,0.56294772]
[1721023772031,0.00083,62905.0,62904.0,1.27774772]
[1721023772201,0.01118049,62905.0,62904.0,1.27774772]
[1721023772408,0.00083,62905.0,62904.0,1.27774772]
[1721023772836,0.00083,62905.0,62904.0,0.99159772]
[1721023773000,0.01126593,62905.0,62904.0,0.70228245]
[1721023773200,0.01126593,62905.0,62904.0,0.70544772]
[1721023773453,0.01126593,62905.0,62904.0,0.46620745]
[1721023773696,0.01126593,62905.0,62904.0,0.193]
[1721023774250,0.01126593,62905.0,62904.0,0.199]
[1721023774555,0.01126593,62905.0,62904.0,0.193]
[1721023774900,0.01126593,62905.0,62904.0,0.199]
[1721023775117,0.01126593,62905.0,62904.0,0.106]
[1721023775318,0.01101666,62905.0,62904.0,0.204]
[1721023775538,0.01101666,62905.0,62904.0,0.43087272]
[1721023776154,0.01101666,62905.0,62904.0,0.42587272]
[1721023776695,0.01101666,62905.0,62904.0,0.41987272]
[1721023776900,0.01101666,62905.0,62904.0,0.42587272]
[1721023777443,0.01101666,62905.0,62904.0,0.43187272]
[1721023778529,0.00083,62905.0,62904.0,0.43187272]
[1721023779125,0.01124166,62905.0,62904.0,0.43187272]
[1721023780116,0.01124166,62905.0,62904.0,0.58067272]
[1721023781882,0.01138655,62905.0,62904.0,0.58067272]
[1721023783671,0.01138655,62905.0,62904.0,0.72374772]
[1721023785304,0.01143873,62905.0,62904.0,0.72374772]
[1721023786268,0.01143873,62905.0,62904.0,0.57494772]
[1721023786511,0.01143873,62905.0,62904.0,0.86109772]
[1721023786713,0.01143873,62905.0,62904.0,1.00309772]
[1721023787512,0.01143873,62905.0,62904.0,1.28924772]
[1721023787719,0.01143873,62905.0,62904.0,1.57539772]
[1721023788668,0.01143873,62905.0,62904.0,1.63539772]
[1721023788987,0.01143873,62905.0,62904.0,2.13539772]
[1721023789189,0.00083,62905.0,62904.0,2.42154772]
[1721023790504,0.00083,62905.0,62904.0,2.41554772]
[1721023790844,0.00083,62905.0,62904.0,2.42954772]
[1721023791063,0.00083,62905.0,62904.0,2.42354772]
[1721023791276,0.00083,62905.0,62904.0,2.40954772]
[1721023791509,0.00083,62905.0,62904.0,2.42354772]
[1721023791627,0.00083,62905.0,62904.0,2.43754772]
[1721023792036,0.00083,62905.0,62904.0,2.80534772]
[1721023792393,0.00083,62905.0,62904.0,3.33398471]
[1721023792596,0.00013,62909.0,62908.0,2.32281472]
[1721023792793,0.00013,62909.0,62908.0,2.7899991]
[1721023793598,0.00013,62909.0,62908.0,2.8899991]
[1721023794188,0.00013,62909.0,62908.0,2.6899991]
[1721023794785,0.00013,62909.0,62908.0,2.8899991]
[1721023795206,0.00013,62909.0,62908.0,2.9179991]
[1721023795607,0.00013,62909.0,62908.0,3.2041311]
[1721023795806,0.00084,62917.0,62916.0,2.39290472]
[1721023795987,0.00084,62917.0,62916.0,2.8600521]
[1721023796371,0.00084,62917.0,62916.0,2.8919321]
[1721023796577,0.00084,62917.0,62916.0,3.0919321]
[1721023797012,0.00084,62917.0,62916.0,3.4780271]
[1721023797218,0.00084,62917.0,62916.0,3.5780271]
[1721023797417,0.00084,62917.0,62916.0,3.6780271]
[1721023797971,0.00084,62923.0,62922.0,2.48117872]
[1721023798104,0.00084,62923.0,62922.0,3.22695712]
[1721023798304,4e-05,62930.0,62929.0,2.86671472]
[1721023798506,4e-05,62930.0,62929.0,3.6217975]
[1721023798725,4e-05,62930.0,62929.0,3.8282975]
[1721023798905,4e-05,62930.0,62929.0,4.2143335]
[1721023800627,4e-05,62930.0,62929.0,4.2283335]
[1721023800835,4e-05,62930.0,62929.0,4.2423335]
[1721023801018,4e-05,62930.0,62929.0,4.2283335]
[1721023801209,4e-05,62930.0,62929.0,3.54724512]
[1721023801438,4e-05,62930.0,62929.0,3.56124512]
[1721023802103,4e-05,62930.0,62929.0,2.87524512]
[1721023802307,4e-05,62930.0,62929.0,3.57524512]
[1721023802518,4e-05,62930.0,62929.0,3.56124512]
[1721023802722,4e-05,62930.0,62929.0,3.57524512]
[1721023802878,4e-05,62930.0,62929.0,3.66124512]
[1721023803086,4e-05,62930.0,62929.0,3.86124512]
[1721023803285,4e-05,62930.0,62929.0,3.87524512]
[1721023803488,4e-05,62930.0,62929.0,3.88621768]
[1721023803776,4e-05,62930.0,62929.0,3.55838728]
[1721023803995,4e-05,62930.0,62929.0,3.53038728]
[1721023804418,4e-05,62930.0,62929.0,3.55838728]
[1721023805024,4e-05,62930.0,62929.0,3.69020728]
[1721023806035,4e-05,62930.0,62929.0,3.89020728]
[1721023806691,4e-05,62930.0,62929.0,3.87620728]
[1721023807093,4e-05,62930.0,62929.0,3.89020728]
[1721023807408,4e-05,62930.0,62929.0,3.86220728]
[1721023807994,4e-05,62930.0,62929.0,3.88454728]
[1721023808808,4e-05,62930.0,62929.0,4.17058328]
[1721023809653,0.00834,62940.0,62939.0,2.77413172]
[1721023809859,0.00834,62940.0,62939.0,3.10196212]
[1721023810056,0.00834,62940.0,62939.0,3.41973212]
[1721023811287,0.00834,62940.0,62939.0,3.43373212]
[1721023811682,0.00834,62940.0,62939.0,3.44773212]
[1721023812225,0.00834,62940.0,62939.0,3.64773212]
[1721023812368,0.00834,62940.0,62939.0,3.44773212]
[1721023813240,0.04924603,62956.0,62955.0,2.15625645]
[1721023813375,0.00834,62968.0,62967.0,1.70478472]
[1721023813578,0.00834,62972.0,62971.0,1.74266472]
[1721023813801,0.0982,62999.0,62979.0,1.17670745]
[1721023813999,0.0982,62999.0,62979.0,1.89439472]
[1721023814248,0.0982,62999.0,62979.0,3.03381272]
[1721023814461,0.01661324,63005.0,62979.0,3.77238272]
[1721023814678,0.0418,63006.0,62979.0,3.77238272]
[1721023814802,0.00622,62993.0,62992.0,1.47999772]
[1721023815012,0.00622,62993.0,62992.0,1.85979772]
[1721023815214,0.00622,62993.0,62992.0,1.79979772]
[1721023816031,0.00622,62993.0,62992.0,0.82508245]
[1721023816230,0.00622,62993.0,62992.0,1.16599772]
[1721023816429,0.00622,62993.0,62992.0,1.45174772]
[1721023817460,0.00622,62993.0,62992.0,1.46474772]
[1721023817838,0.00622,62993.0,62992.0,1.45174772]
[1721023818045,0.00622,62993.0,62992.0,1.16599772]
[1721023818292,0.00622,62993.0,62992.0,1.17899772]
[1721023818451,0.00622,62993.0,62992.0,1.46474772]
[1721023819055,0.00622,62993.0,62992.0,1.47874772]
[1721023820012,0.00622,62993.0,62992.0,0.90724772]
[1721023820536,0.00622,62993.0,62992.0,1.46574772]
[1721023820705,0.00622,62993.0,62992.0,1.47974772]
[1721023821046,0.00622,62993.0,62992.0,1.46574772]
[1721023821286,0.00622,62993.0,62992.0,1.45174772]
[1721023821471,0.00622,62993.0,62992.0,1.46574772]
[1721023821688,0.00622,62993.0,62992.0,2.13659772]
[1721023821891,0.00622,62993.0,62992.0,2.62234772]
[1721023822138,0.00061506,63009.0,63008.0,0.84838972]
[1721023823023,0.00061506,63009.0,63008.0,1.19406772]
[1721023823256,0.00061506,63009.0,63008.0,1.93322372]
[1721023823632,0.00061506,63009.0,63008.0,1.13406772]
[1721023824119,0.00061506,63009.0,63008.0,1.19046772]
[1721023824708,0.00061506,63009.0,63008.0,1.20446772]
[1721023824903,0.00061506,63009.0,63008.0,1.19046772]
[1721023825129,0.00061506,63009.0,63008.0,1.20446772]
[1721023825403,0.00061506,63009.0,63008.0,1.27846772]
[1721023825950,0.00061506,63009.0,63008.0,1.21846772]
[1721023826146,0.00061506,63009.0,63008.0,1.27846772]
[1721023826347,0.00061506,63009.0,63008.0,1.56414572]
[1721023826770,0.00061506,63009.0,63008.0,1.26446772]
[1721023826948,0.00061506,63009.0,63008.0,2.18309545]
[1721023827150,4e-05,63016.0,63015.0,1.79398772]
[1721023827409,4e-05,63016.0,63015.0,2.63861372]
[1721023827616,4e-05,63016.0,63015.0,3.42393972]
[1721023828024,4e-05,63016.0,63015.0,3.22393972]
[1721023828535,0.012528,63026.0,63025.0,1.13387272]
[1721023829875,0.012528,63026.0,63025.0,1.14787272]
[1721023830221,0.012528,63026.0,63025.0,1.20787272]
[1721023830420,0.012528,63026.0,63025.0,1.14787272]
[1721023830623,0.012309,63026.0,63025.0,0.57667272]
[1721023830786,0.012309,63026.0,63025.0,0.87627272]
[1721023830985,0.012309,63026.0,63025.0,0.86227272]
[1721023831192,0.012309,63026.0,63025.0,1.14787272]
[1721023831390,0.012309,63026.0,63025.0,1.16187272]
[1721023831589,0.012309,63026.0,63025.0,1.16217381]
[1721023831810,0.012309,63026.0,63025.0,1.14817381]
[1721023832048,0.012309,63026.0,63025.0,1.16217381]
[1721023832274,0.012309,63026.0,63025.0,1.17617381]
[1721023832408,0.012309,63026.0,63025.0,1.46177381]
[1721023832609,0.012309,63026.0,63025.0,1.65327381]
[1721023832811,0.012309,63026.0,63025.0,1.97060381]
[1721023833194,0.012309,63026.0,63025.0,3.09065619]
[1721023833416,0.001,63029.0,63028.0,1.64722672]
[1721023833904,0.001,63029.0,63028.0,1.97624465]
[1721023834939,0.001,63029.0,63028.0,1.99024465]
[1721023835142,0.001,63029.0,63028.0,1.97624465]
[1721023835337,0.001,63029.0,63028.0,2.30844465]
[1721023835554,0.001,63029.0,63028.0,2.52244465]
[1721023835753,0.001,63029.0,63028.0,2.50844465]
[1721023835953,0.001,63029.0,63028.0,1.80844465]
[1721023836288,0.001,63029.0,63028.0,2.52244465]
[1721023836682,0.001,63029.0,63028.0,2.67624465]
[1721023836855,0.001,63029.0,63028.0,2.69024465]
[1721023837263,0.001,63029.0,63028.0,2.70424465]
[1721023837443,0.001,63029.0,63028.0,1.99024465]
[1721023837781,0.001,63029.0,63028.0,2.70424465]
[1721023838213,0.001,63029.0,63028.0,2.69024465]
[1721023838415,0.001,63029.0,63028.0,2.67624465]
[1721023838619,0.001,63029.0,63028.0,2.70424465]
[1721023838747,0.001,63029.0,63028.0,2.69024465]
[1721023839750,0.001,63029.0,63028.0,2.70812465]
[1721023840014,0.001,63029.0,63028.0,2.70424465]
[1721023841047,0.001,63029.0,63028.0,3.17453165]
[1721023841433,0.001,63029.0,63028.0,2.76982465]
[1721023841552,0.001,63029.0,63028.0,2.78382465]
[1721023841753,0.001,63029.0,63028.0,2.76982465]
[1721023841969,0.001,63029.0,63028.0,2.78382465]
[1721023842167,0.001,63029.0,63028.0,2.79782465]
[1721023842368,0.001,63029.0,63028.0,2.78382465]
[1721023842591,0.001,63029.0,63028.0,2.76982465]
[1721023842792,0.001,63029.0,63028.0,2.59782465]
[1721023842992,0.001,63029.0,63028.0,2.56594465]
[1721023843231,0.001,63029.0,63028.0,2.53794465]
[1721023843463,0.0418,63039.0,63038.0,0.36470745]
[1721023843666,0.0418,63039.0,63038.0,0.41987272]
[1721023843998,0.0418,63039.0,63038.0,0.37634928]
[1721023844671,0.0418,63039.0,63038.0,0.43151455]
[1721023845589,0.470105,63039.0,63038.0,0.11164183]
[1721023845763,0.470105,63039.0,63038.0,0.12064183]
[1721023845963,0.184568,63039.0,63038.0,0.13364183]
[1721023846376,0.0564,63040.0,63039.0,0.36470745]
[1721023846542,0.05014,63043.0,63042.0,0.41987272]
[1721023846949,0.192899,63043.0,63042.0,0.11162875]
[1721023847162,0.722137,63043.0,63042.0,0.11162875]
[1721023847380,0.722137,63043.0,63042.0,0.57426247]
[1721023847381,0.00834,63043.0,63042.0,0.57426247]
[1721023847560,0.00834,63043.0,63042.0,0.56263372]
[1721023847762,0.00834,63043.0,63042.0,0.85978547]
[1721023848378,0.00834,63043.0,63042.0,1.20930847]
[1721023848581,0.00834,63043.0,63042.0,1.52655847]
[1721023848800,0.00834,63043.0,63042.0,1.81908147]
[1721023849001,0.00834,63043.0,63042.0,1.97578147]
[1721023849209,0.00834,63043.0,63042.0,1.96478147]
[1721023849477,0.00834,63043.0,63042.0,1.60725847]
[1721023849621,0.00834,63043.0,63042.0,1.62125847]
[1721023850237,0.00834,63043.0,63042.0,1.19103547]
[1721023850603,0.00834,63043.0,63042.0,1.47655847]
[1721023851327,0.00834,63043.0,63042.0,0.7075862]
[1721023851533,0.00834,63043.0,63042.0,1.04827447]
[1721023851735,0.00834,63043.0,63042.0,0.76275147]
[1721023851990,0.00834,63043.0,63042.0,0.75931545]
[1721023852348,0.00834,63043.0,63042.0,0.77331545]
[1721023852523,0.00834,63043.0,63042.0,0.75931545]
[1721023852853,0.00834,63043.0,63042.0,0.74531545]
[1721023853460,0.00834,63043.0,63042.0,0.88807645]
[1721023853632,0.00834,63043.0,63042.0,0.75931545]
[1721023854260,0.00834,63043.0,63042.0,0.77331545]
[1721023854470,0.00834,63043.0,63042.0,0.75931545]
[1721023854678,0.00834,63043.0,63042.0,0.90207645]
[1721023854842,0.00834,63043.0,63042.0,1.18759945]
[1721023855272,0.00834,63043.0,63042.0,1.20159945]
[1721023855831,0.00834,63043.0,63042.0,1.20115418]
[1721023856340,0.00834,63043.0,63042.0,0.45299746]
[1721023856545,0.617618,63043.0,63042.0,0.45299746]
[1721023856750,0.674018,63043.0,63042.0,0.44480473]
[1721023856972,0.06474,63043.0,63042.0,0.70951218]
[1721023857191,0.207499,63043.0,63042.0,0.44480473]
[1721023857354,0.06474,63043.0,63042.0,0.44480473]
[1721023857895,0.786537,63043.0,63042.0,0.44480473]
[1721023858036,0.828337,63043.0,63042.0,0.44480473]
[1721023858231,1.009337,63043.0,63042.0,0.44480473]
[1721023858683,1.001337,63043.0,63042.0,0.44480473]
[1721023859274,1.001337,63043.0,63042.0,0.41680473]
[1721023859675,1.001337,63043.0,63042.0,0.44480473]
[1721023860282,0.00834,63043.0,63042.0,0.76467745]
[1721023860657,0.00834,63043.0,63042.0,1.19296145]
[1721023861022,0.00834,63043.0,63042.0,0.76467745]
[1721023861639,0.00834,63043.0,63042.0,0.90743845]
[1721023861787,0.00834,63043.0,63042.0,0.45520865]
[1721023861788,0.151099,63043.0,63042.0,0.45520865]
[1721023862052,0.00834,63043.0,63042.0,0.54820865]
[1721023862255,0.00834,63043.0,63042.0,0.77508137]
[1721023862453,0.00834,63043.0,63042.0,0.91784237]
[1721023862843,0.00834,63043.0,63042.0,0.77508137]
[1721023863610,0.00834,63043.0,63042.0,1.56828837]
[1721023863810,0.00834,63043.0,63042.0,1.69288837]
[1721023864056,0.00834,63043.0,63042.0,0.8639161]
[1721023864254,0.06474,63043.0,63042.0,0.54820865]
[1721023864572,0.207499,63043.0,63042.0,0.54820865]
[1721023864778,0.493018,63043.0,63042.0,0.35565392]
[1721023864978,0.778537,63043.0,63042.0,0.45520865]
[1721023865518,0.47812402,63020.0,63019.0,0.988442]
[1721023865666,0.47812402,63020.0,63019.0,2.53919724]
[1721023865866,0.47812402,63020.0,63019.0,2.35777491]
[1721023866076,0.47812402,63020.0,63019.0,1.90640326]
[1721023866413,0.47812402,63020.0,63019.0,1.85933202]
[1721023866755,0.47812402,63020.0,63019.0,1.92293802]
[1721023867598,0.47812402,63020.0,63019.0,1.92294735]
[1721023868188,0.47912402,63020.0,63019.0,2.087732]
[1721023868390,0.47912402,63020.0,63019.0,2.259212]
[1721023868959,0.47812402,63020.0,63019.0,2.248212]
[1721023869148,0.47912402,63020.0,63019.0,2.258212]
[1721023869378,0.47912402,63020.0,63019.0,1.972584]
[1721023869603,0.47912402,63020.0,63019.0,1.126956]
[1721023869808,0.47812402,63020.0,63019.0,1.116956]
[1721023869982,0.47812402,63020.0,63019.0,1.130956]
[1721023870121,0.47812402,63020.0,63019.0,1.53547]
[1721023870343,0.47812402,63020.0,63019.0,0.438442]
[1721023870750,0.53912402,63020.0,63019.0,0.452442]
[1721023870922,0.53912402,63020.0,63019.0,0.024]
[1721023871126,0.47912402,63020.0,63019.0,0.024]
[1721023871335,0.53912402,63020.0,63019.0,0.024]
[1721023871542,0.47912402,63020.0,63019.0,0.024]
[1721023871685,0.47912402,63020.0,63019.0,1.04297]
[1721023871887,0.47912402,63020.0,63019.0,1.374598]
[1721023872107,0.47912402,63020.0,63019.0,1.660226]
[1721023872326,0.48012402,63020.0,63019.0,1.692106]
[1721023873067,0.47912402,63020.0,63019.0,0.92117]
[1721023873295,0.47912402,63020.0,63019.0,0.91117]
[1721023873296,0.47812402,63020.0,63019.0,0.91117]
[1721023873462,0.47912402,63020.0,63019.0,0.91117]
[1721023873814,0.47912402,63020.0,63019.0,0.85117]
[1721023874174,0.48012402,63020.0,63019.0,0.85117]
[1721023874555,0.48012402,63020.0,63019.0,1.136798]
[1721023874761,0.47912402,63020.0,63019.0,1.136798]
[1721023874964,0.47912402,63020.0,63019.0,1.196798]
[1721023876031,0.48012402,63020.0,63019.0,1.208798]
[1721023876361,0.001,63020.0,63019.0,0.85117]
[1721023876597,0.001,63020.0,63019.0,0.0889]
[1721023876807,0.001,63020.0,63019.0,0.023]
[1721023876971,0.002,63020.0,63019.0,0.165814]
[1721023877403,0.001,63020.0,63019.0,0.01517319]
[1721023877604,0.001,63020.0,63019.0,0.012]
[1721023877807,0.002,63020.0,63019.0,0.023]
[1721023878008,0.002,63020.0,63019.0,0.023913]
[1721023878419,0.00180905,63020.0,63019.0,0.023913]
[1721023878604,0.16180905,63020.0,63019.0,0.023913]
[1721023878803,0.01169847,63020.0,63019.0,0.011913]
[1721023879043,0.11088942,63020.0,63019.0,0.154727]
[1721023879241,0.11088942,63020.0,63019.0,0.440355]
[1721023879398,0.11088942,63020.0,63019.0,0.725983]
[1721023879598,0.11088942,63020.0,63019.0,0.799483]
[1721023879599,0.11188942,63020.0,63019.0,0.799483]
[1721023880013,0.11188942,63020.0,63019.0,0.735983]
[1721023880772,0.11188939,63020.0,63019.0,0.735983]
[1721023881208,0.11188946,63020.0,63019.0,1.053343]
[1721023881936,0.11188946,63020.0,63019.0,1.113343]
[1721023882155,0.01188946,63020.0,63019.0,1.478971]
[1721023882368,0.002,63020.0,63019.0,1.478971]
[1721023883783,0.002,63020.0,63019.0,1.539271]
[1721023884223,0.002,63020.0,63019.0,1.479271]
[1721023884647,0.002,63020.0,63019.0,1.539271]
[1721023886257,0.002,63020.0,63019.0,1.824899]
[1721023886614,0.002,63020.0,63019.0,2.024899]
[1721023886819,0.002,63020.0,63019.0,2.256779]
[1721023887020,0.002,63020.0,63019.0,2.524579]
[1721023887221,0.002,63020.0,63019.0,2.810207]
[1721023887428,0.001,63020.0,63019.0,2.900207]
[1721023887673,0.04901022,63032.0,63031.0,1.420239]
[1721023887878,0.04901022,63032.0,63031.0,3.4314884]
[1721023888063,0.00834,63043.0,63042.0,0.773807]
[1721023888284,0.00834,63043.0,63042.0,1.800503]
[1721023888684,0.06572898,63043.0,63042.0,1.800503]
[1721023889257,0.06672898,63043.0,63042.0,1.811503]
[1721023889696,0.056844,63043.0,63042.0,1.811503]
[1721023889894,0.055844,63043.0,63042.0,1.800503]
[1721023890242,0.055844,63043.0,63042.0,2.000503]
[1721023890443,0.055844,63043.0,63042.0,2.014503]
[1721023890691,0.055844,63043.0,63042.0,1.814503]
[1721023890893,0.055844,63043.0,63042.0,1.059057]
[1721023891231,0.055844,63043.0,63042.0,1.119057]
[1721023891507,0.055844,63043.0,63042.0,1.105057]
[1721023891909,0.055844,63043.0,63042.0,1.091057]
[1721023892112,0.055844,63043.0,63042.0,1.059057]
[1721023892742,0.055844,63043.0,63042.0,1.545057]
[1721023892971,0.055844,63043.0,63042.0,1.619057]
[1721023893499,0.055844,63043.0,63042.0,1.605057]
[1721023893961,0.055844,63043.0,63042.0,1.90458]
[1721023894189,0.06572928,63043.0,63042.0,1.90458]
[1721023894928,0.06572928,63043.0,63042.0,1.91858]
[1721023895112,0.06572928,63043.0,63042.0,1.559057]
[1721023895311,0.06572928,63043.0,63042.0,1.545057]
[1721023895529,0.06572928,63043.0,63042.0,1.573057]
[1721023896060,0.06572928,63043.0,63042.0,1.559057]
[1721023896238,0.06572928,63043.0,63042.0,1.619057]
[1721023896449,0.06672928,63043.0,63042.0,1.633057]
[1721023896828,0.06572928,63043.0,63042.0,1.619057]
[1721023897489,0.06672928,63043.0,63042.0,1.633057]
[1721023897647,0.056844,63043.0,63042.0,1.633057]
[1721023898188,0.056844,63043.0,63042.0,1.605057]
[1721023898693,0.057844,63043.0,63042.0,1.619057]
[1721023899231,0.057844,63043.0,63042.0,1.559057]
[1721023899439,0.057844,63043.0,63042.0,1.059057]
[1721023900175,0.123844,63043.0,63042.0,0.34525]
[1721023900362,0.123844,63043.0,63042.0,0.773534]
[1721023900565,0.07634,63043.0,63042.0,0.773534]
[1721023900779,0.01034,63043.0,63042.0,0.773534]
[1721023901641,0.00934,63043.0,63042.0,0.759534]
[1721023902030,0.01034,63043.0,63042.0,0.773534]
[1721023902464,0.00934,63043.0,63042.0,0.759534]
[1721023903030,0.00934,63043.0,63042.0,0.773534]
[1721023904101,0.00934,63043.0,63042.0,1.119057]
[1721023905031,0.00934,63043.0,63042.0,1.1185633]
[1721023907217,0.00934,63043.0,63042.0,2.0439863]
[1721023908913,0.00934,63043.0,63042.0,1.5585633]
[1721023910616,0.00934,63043.0,63042.0,1.0585633]
[1721023910771,0.07434,63043.0,63042.0,1.0585633]
[1721023911719,0.00934,63043.0,63042.0,1.0585633]
[1721023912335,0.00934,63043.0,63042.0,0.4875173]
[1721023912699,0.00934,63043.0,63042.0,0.7730403]
[1721023918499,0.00934,63043.0,63042.0,0.3447563]
[1721023918500,0.06934,63043.0,63042.0,0.3447563]
[1721023918697,0.31304,63043.0,63042.0,0.3447563]
[1721023918955,0.455799,63043.0,63042.0,0.3447563]
[1721023919162,0.82508877,63043.0,63042.0,0.3447563]
[1721023919280,0.99368713,63043.0,63042.0,0.3447563]
[1721023919471,0.78992419,63043.0,63042.0,0.3447563]
[1721023919696,0.78992419,63043.0,63042.0,0.3307563]
[1721023920134,0.78992419,63043.0,63042.0,0.3327563]
[1721023920901,0.76615342,63043.0,63042.0,0.3327563]
[1721023921099,0.79051287,63043.0,63042.0,0.3327563]
[1721023921368,0.50499387,63043.0,63042.0,0.3327563]
[1721023921572,0.36223487,63043.0,63042.0,0.3327563]
[1721023921704,0.33787542,63043.0,63042.0,0.3327563]
[1721023922044,0.33687542,63043.0,63042.0,0.3187563]
[1721023922280,0.47963442,63043.0,63042.0,0.3197563]
[1721023922496,0.47963442,63043.0,63042.0,0.3167563]
[1721023922933,1.11067242,63043.0,63042.0,0.3177563]
[1721023923261,0.76515342,63043.0,63042.0,0.3167563]
[1721023923666,0.33687542,63043.0,63042.0,0.3217563]
[1721023923882,0.33687542,63043.0,63042.0,0.3267563]
[1721023924088,0.31204,63043.0,63042.0,0.3267563]
[1721023924320,0.33687221,63043.0,63042.0,0.3267563]
[1721023924711,0.31204,63043.0,63042.0,0.3267563]
[1721023925086,0.33687214,63043.0,63042.0,0.3267563]
[1721023925283,0.48269467,63043.0,63042.0,0.3267563]
[1721023925666,0.76821367,63043.0,63042.0,0.3267563]
[1721023925774,0.76515014,63043.0,63042.0,0.3217563]
[1721023925980,0.76615014,63043.0,63042.0,0.3167563]
[1721023927119,0.25567214,63043.0,63042.0,0.3167563]
[1721023927715,0.25873567,63043.0,63042.0,0.3177563]
[1721023927914,0.76521367,63043.0,63042.0,0.3177563]
[1721023928115,0.47663114,63043.0,63042.0,0.3177563]
[1721023928337,0.27387214,63043.0,63042.0,0.3177563]
[1721023928562,0.32138046,63043.0,63042.0,0.3177563]
[1721023928889,0.30904,63043.0,63042.0,0.3177563]
[1721023929202,0.33387298,63043.0,63042.0,0.3167563]
[1721023929485,0.33387298,63043.0,63042.0,0.3217563]
[1721023929815,0.33387298,63043.0,63042.0,0.3177563]
[1721023930167,0.8106593,63043.0,63042.0,0.3237563]